bitfinex-derivatives/quotes_SOLF0:USTF0_20250312
["timestamp","ask_amount","ask_price","bid_price","bid_amount"]
[1741761177237,0.06167959,122.44,122.4,0.05335924]
[1741761178336,8.1712,122.42,122.4,0.05335924]
[1741761178734,8.1704,122.43,122.4,0.05335924]
[1741761178939,0.06167959,122.44,122.4,0.05335924]
[1741761179334,0.06167959,122.44,122.41,8.1715]
[1741761179335,8.23167959,122.44,122.41,8.1715]
[1741761179539,0.06167959,122.44,122.4,0.05335924]
[1741761180842,8.1715,122.41,122.4,0.05335924]
[1741761181239,17.51529996,122.41,122.34,45.38288726]
[1741761181439,17.51529996,122.41,122.35,75.92288726]
[1741761181440,2.2138,122.4,122.35,75.92288726]
[1741761181641,17.51529996,122.39,122.35,45.38288726]
[1741761182146,8.1748,122.36,122.35,45.38288726]
[1741761184343,8.1748,122.36,122.34,0.05740233]
[1741761184744,8.1755,122.35,122.34,0.05740233]
[1741761185252,48.05529996,122.37,122.3,30.54]
[1741761185444,8.1752,122.36,122.32,8.1774]
[1741761185642,8.1752,122.36,122.3,30.54]
[1741761185643,48.05529996,122.37,122.3,30.54]
[1741761185844,2.1174,122.38,122.31,17.51529996]
[1741761186044,2.1174,122.38,122.34,8.1757]
[1741761186246,0.06062287,122.37,122.35,0.05239183]
[1741761186447,0.06062287,122.37,122.35,8.22749183]
[1741761188052,0.06062287,122.37,122.35,0.05239183]
[1741761188549,8.23492287,122.37,122.35,0.05239183]
[1741761189548,0.06062287,122.37,122.35,0.05239183]
[1741761190558,30.54,122.36,122.29,17.51529996]
[1741761190767,30.54,122.36,122.29,48.05529996]
[1741761190956,8.1766,122.34,122.3,8.1782]
[1741761191660,0.06036325,122.33,122.3,8.1782]
[1741761191866,0.06036325,122.33,122.29,48.05529996]
[1741761192367,0.06036325,122.33,122.32,8.1775]
[1741761193662,0.06036325,122.33,122.29,48.05529996]
[1741761194769,0.06036325,122.33,122.3,8.1785]
[1741761195268,0.06036325,122.33,122.29,48.05529996]
[1741761195470,0.06036325,122.33,122.31,8.1777]
[1741761195969,0.06036325,122.33,122.29,48.05529996]
[1741761197567,0.06036325,122.33,122.32,8.1775]
[1741761197867,0.06036325,122.33,122.32,38.7375]
[1741761199769,0.06036325,122.33,122.32,56.25279996]
[1741761199969,16.25,122.38,122.32,48.07529996]
[1741761200171,16.25,122.38,122.36,8.1744]
[1741761201175,16.31284423,122.38,122.36,0.05842834]
[1741761201375,16.31284423,122.38,122.32,48.07529996]
[1741761201576,16.31284423,122.38,122.32,30.56]
[1741761202376,16.31284423,122.38,122.31,17.51529996]
[1741761202577,8.1756,122.35,122.32,8.1772]
[1741761202777,16.25,122.38,122.31,48.07529996]
[1741761202976,0.0547232,122.35,122.31,48.07529996]
[1741761203179,0.0547232,122.35,122.29,17.51529996]
[1741761203477,0.0547232,122.35,122.3,30.56]
[1741761203875,8.1762,122.34,122.31,8.1778]
[1741761204277,2.0907232,122.35,122.31,8.1778]
[1741761204679,2.0907232,122.35,122.3,30.56]
[1741761205375,2.0907232,122.35,122.33,8.1764]
[1741761206179,2.0907232,122.35,122.3,30.56]
[1741761206379,0.0547232,122.35,122.3,30.56]
[1741761206882,0.0547232,122.35,122.32,8.177]
[1741761207578,0.0547232,122.35,122.3,30.56]
[1741761207774,0.0547232,122.35,122.33,8.1767]
[1741761209081,0.0547232,122.35,122.3,30.56]
[1741761209278,30.6147232,122.35,122.29,17.51529996]
[1741761210883,8.1773,122.33,122.3,8.1785]
[1741761211282,30.6147232,122.35,122.29,25.69459996]
[1741761211489,17.51529996,122.33,122.26,45.38288726]
[1741761211679,17.51529996,122.31,122.26,45.38288726]
[1741761211885,4.3251,122.3,122.26,45.38288726]
[1741761212079,8.1809,122.27,122.26,45.38288726]
[1741761212285,48.07529996,122.29,122.25,43.37830424]
[1741761212589,0.05265123,122.28,122.25,51.56040424]
[1741761212786,0.05265123,122.28,122.26,30.56]
[1741761213087,0.05265123,122.28,122.27,8.1809]
[1741761213685,0.05265123,122.28,122.27,25.69619996]
[1741761214986,18.93814729,122.39,122.27,17.51529996]
[1741761215185,18.93814729,122.39,122.26,30.56]
[1741761215186,2.1299,122.38,122.3,17.51529996]
[1741761215386,2.1299,122.38,122.31,30.56]
[1741761216281,2.1299,122.38,122.33,0.06146114]
[1741761216282,8.23824494,122.35,122.33,0.06146114]
[1741761216484,0.06244494,122.35,122.29,30.56]
[1741761216684,17.51529996,122.35,122.28,48.07529996]
[1741761216881,8.1774,122.33,122.28,48.07529996]
[1741761217689,0.0572362,122.32,122.28,48.07529996]
[1741761218787,0.0572362,122.32,122.29,30.56]
[1741761218989,0.0572362,122.32,122.31,8.1782]
[1741761219190,0.0572362,122.32,122.29,30.56]
[1741761219588,0.0572362,122.32,122.3,8.1786]
[1741761221091,0.0572362,122.32,122.29,38.7393]
[1741761221385,8.1782,122.31,122.26,17.51529996]
[1741761221582,0.0572362,122.32,122.27,30.56]
[1741761221785,0.0572362,122.32,122.3,8.1782]
[1741761222388,0.0572362,122.32,122.27,30.56]
[1741761222592,0.0572362,122.32,122.28,17.51529996]
[1741761223090,0.0572362,122.32,122.3,8.1785]
[1741761223992,0.0572362,122.32,122.28,17.51529996]
[1741761224593,0.0572362,122.32,122.31,8.1782]
[1741761227996,4.2,122.35,122.3,48.07529996]
[1741761228196,4.2,122.35,122.32,17.51529996]
[1741761228398,4.2,122.35,122.33,30.56]
[1741761228795,29.27,122.37,122.34,8.1757]
[1741761228991,29.27,122.37,122.33,30.56]
[1741761229200,29.33199562,122.37,122.34,0.05262934]
[1741761229395,29.27,122.37,122.34,0.05262934]
[1741761229597,29.33076363,122.37,122.34,0.05262934]
[1741761230392,37.50536363,122.37,122.34,8.22872934]
[1741761230902,29.33076363,122.37,122.34,0.05262934]
[1741761231098,8.1749,122.36,122.34,0.05262934]
[1741761231301,29.33076363,122.37,122.34,0.05262934]
[1741761231697,37.50536363,122.37,122.34,0.05262934]
[1741761233798,29.33076363,122.37,122.35,8.1754]
[1741761234702,37.50496363,122.37,122.34,30.59262934]
[1741761235706,8.1751,122.36,122.34,30.59262934]
[1741761236393,29.33076363,122.37,122.34,30.59262934]
[1741761238308,29.33076363,122.37,122.34,38.76822934]
[1741761239501,29.33076363,122.37,122.35,8.1755]
[1741761240309,37.50496363,122.37,122.34,38.76852934]
[1741761242210,29.33076363,122.37,122.34,0.05262934]
[1741761243312,8.1753,122.36,122.34,0.05262934]
[1741761243509,29.33076363,122.37,122.34,0.05262934]
[1741761245712,37.50536363,122.37,122.34,8.22852934]
[1741761246712,29.33076363,122.37,122.34,0.05262934]
[1741761247014,29.33076363,122.37,122.35,8.1753]
[1741761247912,29.33076363,122.37,122.36,8.1748]
[1741761248118,29.33076363,122.37,122.36,19.39852609]
[1741761249617,29.33076363,122.37,122.36,49.93852609]
[1741761250121,29.33076363,122.37,122.36,30.54]
[1741761250312,0.06076363,122.37,122.36,30.54]
[1741761252217,0.06076363,122.37,122.36,38.7148]
[1741761255717,0.06076363,122.37,122.36,30.54]
[1741761257016,0.06076363,122.37,122.36,38.7148]
[1741761257416,0.06076363,122.37,122.36,30.54]
[1741761259117,8.23496363,122.37,122.34,38.76852934]
[1741761259417,0.06076363,122.37,122.34,0.05262934]
[1741761259623,2.0929,122.36,122.34,0.05262934]
[1741761259922,8.1755,122.35,122.34,0.05262934]
[1741761260227,2.0929,122.36,122.34,0.05262934]
[1741761260522,10.2683,122.36,122.34,0.05262934]
[1741761262018,2.0929,122.36,122.34,0.05262934]
[1741761262424,0.06076363,122.37,122.34,0.05262934]
[1741761262927,0.06076363,122.37,122.35,30.54]
[1741761263421,0.06076363,122.37,122.36,8.1748]
[1741761264122,23.27,122.39,122.38,8.1735]
[1741761264323,277.9256,122.44,122.38,30.54]
[1741761264717,247.3856,122.44,122.38,30.54]
[1741761265118,5.4066832,122.41,122.38,30.59379168]
[1741761265628,8.1723,122.4,122.38,30.59379168]
[1741761266125,5.4066832,122.41,122.38,30.59379168]
[1741761266428,5.4066832,122.41,122.38,48.12507882]
[1741761267325,5.4066832,122.41,122.38,56.29817882]
[1741761267922,5.4066832,122.41,122.39,8.1728]
[1741761268119,5.4066832,122.41,122.38,48.12507882]
[1741761268328,247.3856,122.44,122.38,48.12507882]
[1741761268522,10.2661,122.45,122.41,8.1711]
[1741761269528,0.05955232,122.44,122.42,0.05670437]
[1741761270226,8.1702,122.43,122.42,0.05670437]
[1741761270428,0.05955232,122.44,122.42,0.05670437]
[1741761272833,8.22945232,122.44,122.42,0.05670437]
[1741761274339,0.05955232,122.44,122.42,0.05670437]
[1741761274837,0.05955232,122.44,122.42,8.22730437]
[1741761277347,8.22915232,122.44,122.42,0.05670437]
[1741761278648,8.1702,122.43,122.42,0.05670437]
[1741761280245,11.21061752,122.43,122.38,11.21061752]
[1741761280551,11.21061752,122.43,122.38,41.73061752]
[1741761280752,8.1723,122.4,122.38,11.21061752]
[1741761280946,11.21061752,122.4,122.35,11.21061752]
[1741761281242,11.21061752,122.38,122.33,11.21061752]
[1741761281447,2.0236,122.41,122.32,45.36112463]
[1741761281448,11.21061752,122.36,122.32,45.36112463]
[1741761281647,11.21061752,122.34,122.32,45.36112463]
[1741761281844,11.21061752,122.33,122.32,42.08507735]
[1741761282451,11.21061752,122.33,122.31,109.61942254]
[1741761282648,11.21061752,122.32,122.31,109.61942254]
[1741761283151,19.38811752,122.32,122.31,109.61942254]
[1741761283653,11.21061752,122.32,122.31,99.84262254]
[1741761284249,48.0769158,122.33,122.31,99.84262254]
[1741761284647,30.52,122.33,122.31,99.84262254]
[1741761285053,30.52,122.33,122.3,0.05694541]
[1741761285455,38.6974,122.33,122.3,0.05694541]
[1741761285657,30.52,122.33,122.3,0.05694541]
[1741761286746,8.1776,122.32,122.3,0.05694541]
[1741761287060,8.23025743,122.32,122.3,0.05694541]
[1741761287352,8.1782,122.31,122.3,0.05694541]
[1741761288251,8.23035743,122.32,122.3,0.05694541]
[1741761289357,8.1782,122.31,122.3,0.05694541]
[1741761291155,0.05265743,122.32,122.3,0.05694541]
[1741761291857,8.23025743,122.32,122.3,0.05694541]
[1741761292749,0.05265743,122.32,122.3,0.05694541]
[1741761293248,0.05265743,122.32,122.31,8.1782]
[1741761294348,0.05265743,122.32,122.3,0.05694541]
[1741761295058,8.1782,122.31,122.3,0.05694541]
[1741761296157,0.05265743,122.32,122.3,0.05694541]
[1741761296359,8.1782,122.31,122.3,0.05694541]
[1741761296658,0.05265743,122.32,122.3,0.05694541]
[1741761297762,0.05265743,122.32,122.3,8.23544541]
[1741761298060,0.05265743,122.32,122.3,0.05694541]
[1741761298356,0.05265743,122.32,122.3,8.23544541]
[1741761298764,0.05265743,122.32,122.3,0.05694541]
[1741761299364,8.1782,122.31,122.3,0.05694541]
[1741761300064,8.23065743,122.32,122.3,0.05694541]
[1741761300359,0.05265743,122.32,122.3,0.05694541]
[1741761300764,8.23045743,122.32,122.3,0.05694541]
[1741761301162,0.05265743,122.32,122.3,0.05694541]
[1741761301364,8.1782,122.31,122.3,0.05694541]
[1741761304066,0.05265743,122.32,122.3,0.05694541]
[1741761304765,0.05265743,122.32,122.3,8.23554541]
[1741761304964,0.05265743,122.32,122.3,0.05694541]
[1741761305267,250.5,122.35,122.31,2.1229]
[1741761305476,250.5,122.35,122.32,8.1771]
[1741761305860,250.5,122.35,122.33,8.1764]
[1741761306065,5.36,122.35,122.32,30.54]
[1741761306257,5.41802221,122.35,122.33,0.05299333]
[1741761307068,5.41802221,122.35,122.33,8.22949333]
[1741761307258,5.41802221,122.35,122.33,0.05299333]
[1741761307969,5.41802221,122.35,122.33,17.60990913]
[1741761308668,5.41802221,122.35,122.33,0.05299333]
[1741761309762,0.05802221,122.35,122.34,8.1762]
[1741761310566,8.1738,122.38,122.35,8.1753]
[1741761311068,275.9,122.4,122.33,48.14990913]
[1741761311269,8.173,122.39,122.36,8.1748]
[1741761311669,8.22785662,122.39,122.36,8.23132593]
[1741761312162,0.05485662,122.39,122.36,0.05652593]
[1741761312760,5.41485662,122.39,122.37,8.1736]
[1741761312966,5.41485662,122.39,122.36,30.57652593]
[1741761313167,5.41485662,122.39,122.37,2.0325]
[1741761313368,5.41485662,122.39,122.38,8.1735]
[1741761313871,5.41485662,122.39,122.37,2.0325]
[1741761314471,5.41485662,122.39,122.38,8.1735]
[1741761314968,262.8569158,122.45,122.37,19.5894158]
[1741761315163,275.82,122.45,122.39,17.5569158]
[1741761315473,8.1699,122.44,122.39,48.0769158]
[1741761315771,8.1699,122.44,122.4,8.172]
[1741761316172,0.05398593,122.43,122.41,0.06245508]
[1741761319776,0.05398593,122.43,122.41,8.23355508]
[1741761320178,17.87,122.46,122.42,30.52]
[1741761320371,17.87,122.46,122.43,17.5569158]
[1741761320572,17.87,122.46,122.43,21.7335158]
[1741761320872,17.87,122.46,122.44,8.1691]
[1741761321375,0.05888094,122.46,122.44,8.2318494]
[1741761322280,0.05888094,122.46,122.44,0.0627494]
[1741761323578,8.1688,122.45,122.44,0.0627494]
[1741761323877,0.05888094,122.46,122.44,0.0627494]
[1741761324080,8.22748094,122.46,122.44,0.0627494]
[1741761326184,0.05888094,122.46,122.44,8.2319494]
[1741761328080,0.05888094,122.46,122.45,8.1688]
[1741761329181,0.05888094,122.46,122.44,8.2319494]
[1741761329783,0.05888094,122.46,122.44,0.0627494]
[1741761331683,0.05888094,122.46,122.45,8.1688]
[1741761332076,0.05888094,122.46,122.45,38.6688]
[1741761332278,0.05888094,122.46,122.45,49.86940174]
[1741761333185,0.05888094,122.46,122.45,41.70060174]
[1741761333981,0.05888094,122.46,122.45,49.86940174]
[1741761334788,0.05888094,122.46,122.45,41.70060174]
[1741761335079,0.05888094,122.46,122.44,0.0627494]
[1741761335280,0.05888094,122.46,122.45,11.20060174]
[1741761335684,0.05888094,122.46,122.45,19.36940174]
[1741761337079,0.05888094,122.46,122.45,11.20060174]
[1741761337990,17.86,122.49,122.45,11.20060174]
[1741761338285,17.86,122.49,122.46,11.20060174]
[1741761338891,17.86,122.49,122.46,19.36870174]
[1741761339187,17.92210252,122.49,122.46,19.36870174]
[1741761339389,26.08830252,122.49,122.46,19.36870174]
[1741761340284,8.22830252,122.49,122.46,19.36870174]
[1741761340486,8.22830252,122.49,122.47,8.1671]
[1741761340487,0.06210252,122.49,122.47,8.1671]
[1741761340888,0.06210252,122.49,122.47,8.22159679]
[1741761341689,8.22830252,122.49,122.47,0.05449679]
[1741761341990,0.06210252,122.49,122.47,0.05449679]
[1741761342185,0.06210252,122.49,122.47,8.22159679]
[1741761342390,0.06210252,122.49,122.47,0.05449679]
[1741761343090,8.22830252,122.49,122.47,0.05449679]
[1741761343286,0.06210252,122.49,122.47,0.05449679]
[1741761343887,8.1668,122.48,122.47,0.05449679]
[1741761345393,11.20060174,122.48,122.42,11.20060174]
[1741761345592,11.20060174,122.47,122.42,11.20060174]
[1741761345994,8.1693,122.45,122.42,11.20060174]
[1741761346194,8.1693,122.45,122.43,11.20060174]
[1741761346595,8.1685,122.46,122.43,11.25952661]
[1741761346894,0.06262318,122.45,122.43,11.25952661]
[1741761347390,0.06262318,122.45,122.44,11.20060174]
[1741761348484,0.06262318,122.45,122.44,41.68060174]
[1741761348685,0.06262318,122.45,122.44,49.85010174]
[1741761355304,253.3858,122.5,122.47,8.1675]
[1741761356409,253.44872888,122.5,122.47,8.22094156]
[1741761356812,245.28292888,122.5,122.47,0.05344156]
[1741761357610,8.1668,122.48,122.47,0.05344156]
[1741761359811,0.06292888,122.5,122.47,0.05344156]
[1741761360013,8.1663,122.49,122.47,0.05344156]
[1741761360211,0.06292888,122.5,122.47,0.05344156]
[1741761360508,8.1668,122.48,122.47,0.05344156]
[1741761361709,11.20060174,122.49,122.47,0.05344156]
[1741761361911,8.22872888,122.5,122.47,0.05344156]
[1741761362111,0.06292888,122.5,122.47,0.05344156]
[1741761362313,8.1665,122.49,122.47,0.05344156]
[1741761362513,0.06292888,122.5,122.47,0.05344156]
[1741761364116,8.1662,122.49,122.47,0.05344156]
[1741761364312,0.06292888,122.5,122.47,0.05344156]
[1741761365114,8.22872888,122.5,122.47,0.05344156]
[1741761365315,0.06292888,122.5,122.47,0.05344156]
[1741761365815,0.06292888,122.5,122.48,11.20060174]
[1741761367418,0.06292888,122.5,122.48,19.36710174]
[1741761367915,0.06292888,122.5,122.48,11.20060174]
[1741761368518,8.22852888,122.5,122.48,11.20060174]
[1741761370517,0.06292888,122.5,122.49,11.20060174]
[1741761371211,8.22842888,122.5,122.49,11.20060174]
[1741761371417,0.06292888,122.5,122.48,11.20060174]
[1741761371715,0.06292888,122.5,122.47,0.05344156]
[1741761372015,11.20060174,122.49,122.47,0.05344156]
[1741761372316,19.36740174,122.48,122.47,0.05344156]
[1741761372510,11.20060174,122.48,122.42,11.20060174]
[1741761372708,8.1689,122.45,122.42,11.20060174]
[1741761373416,11.20060174,122.47,122.42,11.20060174]
[1741761373609,0.05177942,122.45,122.44,11.20060174]
[1741761373813,30.48,122.49,122.44,11.20060174]
[1741761374011,0.05620978,122.46,122.45,11.20060174]
[1741761376316,8.22440978,122.46,122.45,11.20060174]
[1741761376513,0.05620978,122.46,122.44,11.25713825]
[1741761376713,0.05620978,122.46,122.44,0.05653651]
[1741761377016,8.1688,122.45,122.44,0.05653651]
[1741761378009,0.05620978,122.46,122.44,0.05653651]
[1741761378316,8.22470978,122.46,122.44,0.05653651]
[1741761379118,0.05620978,122.46,122.44,11.25713825]
[1741761379711,8.22480978,122.46,122.44,11.25713825]
[1741761379912,0.05620978,122.46,122.44,11.25713825]
[1741761380416,8.22470978,122.46,122.44,11.25713825]
[1741761380919,8.1688,122.45,122.44,11.25713825]
[1741761381217,8.1688,122.45,122.44,0.05653651]
[1741761382820,8.22470978,122.46,122.44,0.05653651]
[1741761384016,0.05620978,122.46,122.44,11.25713825]
[1741761384417,0.05620978,122.46,122.44,19.42653825]
[1741761384917,0.05620978,122.46,122.44,11.25713825]
[1741761385317,8.22460978,122.46,122.44,11.25713825]
[1741761387716,8.1688,122.45,122.44,0.05653651]
[1741761387920,11.25681152,122.46,122.41,11.20060174]
[1741761388120,11.20060174,122.45,122.4,41.68060174]
[1741761388720,8.171,122.42,122.4,41.68060174]
[1741761389118,8.23338708,122.42,122.4,11.25983431]
[1741761389823,8.1715,122.41,122.4,0.05923257]
[1741761390017,11.20060174,122.41,122.36,11.20060174]
[1741761390217,11.20060174,122.4,122.35,11.20060174]
[1741761391117,8.1741,122.38,122.35,11.20060174]
[1741761391326,8.1741,122.38,122.36,0.05259138]
[1741761392521,8.1742,122.37,122.36,0.05259138]
[1741761392717,41.68060174,122.37,122.32,136.39142547]
[1741761393025,11.20060174,122.35,122.29,11.20060174]
[1741761393224,11.20060174,122.34,122.29,11.20060174]
[1741761393627,8.1773,122.33,122.29,11.20060174]
[1741761394016,0.05654908,122.32,122.3,0.0608176]
[1741761394330,11.25715082,122.32,122.3,0.0608176]
[1741761394524,11.20060174,122.31,122.3,0.0608176]
[1741761394824,11.20060174,122.31,122.27,45.36550049]
[1741761395923,11.25715082,122.32,122.28,8.1802]
[1741761396127,0.05654908,122.32,122.29,11.20060174]
[1741761396330,0.05654908,122.32,122.28,17.61014562]
[1741761396529,0.05654908,122.32,122.28,25.79024562]
[1741761397330,0.05654908,122.32,122.28,17.61014562]
[1741761397534,0.05654908,122.32,122.29,8.1794]
[1741761397828,0.05654908,122.32,122.28,17.61014562]
[1741761398028,0.05654908,122.32,122.3,8.1788]
[1741761398331,0.05654908,122.32,122.28,17.61014562]
[1741761399523,0.05654908,122.32,122.29,30.5]
[1741761399722,0.05654908,122.32,122.3,8.1783]
[1741761400230,0.05654908,122.32,122.29,30.5]
[1741761400729,0.05654908,122.32,122.31,8.1782]
[1741761405331,17.84,122.34,122.3,19.62836298]
[1741761405527,17.84,122.34,122.33,8.1768]
[1741761406630,0.06228907,122.35,122.32,48.10449801]
[1741761407726,0.06228907,122.35,122.33,8.1768]
[1741761407926,0.06228907,122.35,122.32,48.10449801]
[1741761408734,0.06228907,122.35,122.32,30.55653503]
[1741761410036,0.06228907,122.35,122.32,38.73403503]
[1741761410336,0.06228907,122.35,122.34,8.1762]
[1741761413640,0.06228907,122.35,122.34,25.72416298]
[1741761413938,30.5,122.42,122.38,8.1735]
[1741761414135,30.5,122.42,122.36,30.5]
[1741761414335,293.32796298,122.44,122.37,8.174]
[1741761414536,293.32796298,122.44,122.36,30.5]
[1741761414537,293.32796298,122.44,122.36,48.04796298]
[1741761414936,0.05948029,122.41,122.39,0.06204637]
[1741761416736,30.55948029,122.41,122.39,0.06204637]
[1741761416936,30.55948029,122.41,122.35,4.0621]
[1741761416937,8.1722,122.4,122.35,4.0621]
[1741761417239,8.1722,122.4,122.36,8.1747]
[1741761418136,8.1722,122.4,122.37,0.06033884]
[1741761418844,8.23118029,122.41,122.37,0.06033884]
[1741761419642,8.23118029,122.41,122.38,8.1734]
[1741761419846,8.23118029,122.41,122.37,0.06033884]
[1741761420046,0.05948029,122.41,122.37,0.06033884]
[1741761420646,8.1733,122.39,122.37,0.06033884]
[1741761421347,0.05948029,122.41,122.37,0.06033884]
[1741761421848,0.05948029,122.41,122.37,8.23423884]
[1741761421849,8.23148029,122.41,122.37,8.23423884]
[1741761422243,19.44998755,122.41,122.37,8.23423884]
[1741761422440,8.1723,122.4,122.37,8.23423884]
[1741761422644,11.21850726,122.4,122.37,0.06033884]
[1741761424049,8.1735,122.39,122.37,0.06033884]
[1741761424249,11.21850726,122.4,122.37,0.06033884]
[1741761424450,13.32360726,122.4,122.37,0.06033884]
[1741761424749,8.1735,122.38,122.37,0.06033884]
[1741761425952,19.39200726,122.38,122.37,0.06033884]
[1741761426451,11.21850726,122.39,122.37,0.06033884]
[1741761426653,40.7576,122.4,122.37,8.23443884]
[1741761426853,40.7576,122.4,122.37,0.06033884]
[1741761427854,30.48,122.4,122.37,11.2788461]
[1741761428161,30.48,122.4,122.38,8.1734]
[1741761428657,38.6523,122.4,122.37,19.4527461]
[1741761428858,38.6523,122.4,122.37,8.23423884]
[1741761429358,8.1723,122.4,122.37,8.23423884]
[1741761429759,8.1723,122.4,122.37,0.06033884]
[1741761429955,8.173,122.39,122.37,0.06033884]
[1741761431760,8.1728,122.4,122.37,0.06033884]
[1741761432460,11.27798755,122.41,122.37,0.06033884]
[1741761433160,8.1734,122.39,122.37,0.06033884]
[1741761434265,11.27798755,122.41,122.37,0.06033884]
[1741761434765,8.1723,122.4,122.37,0.06033884]
[1741761434964,11.27798755,122.41,122.37,0.06033884]
[1741761435969,8.1733,122.39,122.37,0.06033884]
[1741761436167,0.05948029,122.41,122.37,0.06033884]
[1741761436465,11.27798755,122.41,122.37,0.06033884]
[1741761437568,11.21850726,122.4,122.37,0.06033884]
[1741761438067,0.05948029,122.41,122.37,0.06033884]
[1741761438267,11.27798755,122.41,122.37,0.06033884]
[1741761439369,0.05948029,122.41,122.37,8.23403884]
[1741761439762,11.27798755,122.41,122.37,0.06033884]
[1741761440167,8.1727,122.4,122.37,0.06033884]
[1741761440570,8.1727,122.4,122.37,8.23433884]
[1741761441866,11.27798755,122.41,122.37,8.23433884]
[1741761442167,19.44978755,122.41,122.37,8.23433884]
[1741761442570,8.1723,122.4,122.37,0.06033884]
[1741761443769,11.27798755,122.41,122.37,8.23443884]
[1741761443971,11.27798755,122.41,122.37,0.06033884]
[1741761444166,0.05948029,122.41,122.38,11.21850726]
[1741761444372,0.05948029,122.41,122.4,11.21850726]
[1741761444872,65.67070206,122.46,122.4,11.21850726]
[1741761444873,63.61800206,122.46,122.43,8.17]
[1741761445061,63.61800206,122.46,122.44,11.21850726]
[1741761445268,45.36550049,122.46,122.45,11.21850726]
[1741761445467,45.36550049,122.46,122.45,19.38730726]
[1741761445667,45.36550049,122.47,122.45,11.21850726]
[1741761445872,45.41801515,122.47,122.44,11.27292336]
[1741761446271,45.41801515,122.47,122.44,0.0544161]
[1741761446676,8.1686,122.46,122.44,0.0544161]
[1741761446874,45.41801515,122.47,122.44,0.0544161]
[1741761447374,53.58621515,122.47,122.44,0.0544161]
[1741761447569,45.41801515,122.47,122.44,0.0544161]
[1741761447970,8.1688,122.45,122.44,0.0544161]
[1741761451177,11.27102192,122.47,122.44,0.0544161]
[1741761451372,0.05251466,122.47,122.44,0.0544161]
[1741761451876,8.1688,122.45,122.44,0.0544161]
[1741761453180,19.38730726,122.45,122.44,0.0544161]
[1741761453585,8.1688,122.45,122.44,0.0544161]
[1741761456578,19.38730726,122.45,122.44,0.0544161]
[1741761456782,8.1714,122.42,122.39,41.67850726]
[1741761456975,11.21850726,122.44,122.39,11.21850726]
[1741761457177,8.1709,122.42,122.39,19.39120726]
[1741761457780,8.22961905,122.42,122.39,19.45294126]
[1741761457983,0.05871905,122.42,122.41,11.21850726]
[1741761458785,0.05871905,122.42,122.4,11.21850726]
[1741761459786,0.05871905,122.42,122.39,11.28024126]
[1741761460191,8.22971905,122.42,122.39,11.28024126]
[1741761460483,0.05871905,122.42,122.39,11.28024126]
[1741761460988,0.05871905,122.42,122.39,19.45304126]
[1741761461182,0.05871905,122.42,122.39,11.28024126]
[1741761461374,8.22961905,122.42,122.39,11.28024126]
[1741761461872,0.05871905,122.42,122.39,0.061734]
[1741761462073,0.05871905,122.42,122.39,19.45294126]
[1741761463280,0.05871905,122.42,122.4,19.39060726]
[1741761464685,0.05871905,122.42,122.4,11.21850726]
[1741761464876,0.05871905,122.42,122.41,8.1715]
[1741761465081,0.05871905,122.42,122.4,11.21850726]
[1741761465381,0.05871905,122.42,122.4,19.39040726]
[1741761465688,0.05871905,122.42,122.4,11.21850726]
[1741761466287,0.05871905,122.42,122.41,8.1715]
[1741761466986,0.05871905,122.42,122.4,19.39030726]
[1741761468483,0.05871905,122.42,122.4,11.21850726]
[1741761470587,8.22981905,122.42,122.4,11.21850726]
[1741761471595,0.05871905,122.42,122.4,11.21850726]
[1741761471997,0.05871905,122.42,122.4,19.39060726]
[1741761472697,0.05871905,122.42,122.41,8.1715]
[1741761473796,8.1685,122.46,122.43,8.1701]
[1741761474698,256.35850726,122.48,122.43,19.38860726]
[1741761474898,0.05634809,122.46,122.44,19.38790726]
[1741761475598,0.05634809,122.46,122.45,19.38730726]
[1741761477601,0.05634809,122.46,122.45,11.21850726]
[1741761477792,0.05634809,122.46,122.44,19.38770726]
[1741761480299,0.05634809,122.46,122.45,8.1688]
[1741761482396,0.05634809,122.46,122.44,19.38770726]
[1741761482597,0.05634809,122.46,122.44,11.21850726]
[1741761482994,8.22484809,122.46,122.44,11.21850726]
[1741761483198,0.05634809,122.46,122.44,11.21850726]
[1741761483594,8.22454809,122.46,122.44,11.21850726]
[1741761483800,0.05634809,122.46,122.44,11.21850726]
[1741761484700,0.05634809,122.46,122.43,0.05682055]
[1741761485503,8.1695,122.44,122.43,0.05682055]
[1741761485904,19.38800726,122.44,122.43,0.05682055]
[1741761488003,8.1695,122.44,122.43,0.05682055]
[1741761494608,11.27485535,122.46,122.43,0.05682055]
[1741761494813,0.05634809,122.46,122.43,11.27532781]
[1741761495015,0.05634809,122.46,122.44,8.1693]
[1741761495816,0.05634809,122.46,122.45,8.1688]
[1741761496015,0.05634809,122.46,122.45,19.38730726]